[Event "Late-Titled-Tuesday-Blitz-September-12-2023"]
[Site "Chess.com"]
[Date "2023.09.12"]
[Round "1"]
[White "Miguelitro69"]
[Black "SCIM"]
[Result "0-1"]
[WhiteElo "2286"]
[BlackElo "2590"]
[TimeControl "180+1"]
[EndTime "14:07:55 PDT"]
[Termination "SCIM won on time"]

1. e4 {[%clk 0:02:59.4]} 1... e5 {[%clk 0:02:57.7]} 2. Nf3 {[%clk 0:02:59.4]}
2... Nc6 {[%clk 0:02:56.2]} 3. Bb5 {[%clk 0:02:59.3]} 3... a6 {[%clk 0:02:55]}
4. Ba4 {[%clk 0:02:59.5]} 4... Nf6 {[%clk 0:02:53.7]} 5. Qe2 {[%clk 0:02:59.6]}
5... b5 {[%clk 0:02:51]} 6. Bb3 {[%clk 0:02:59.4]} 6... Be7 {[%clk 0:02:45.9]}
7. a4 {[%clk 0:02:49.2]} 7... b4 {[%clk 0:02:41.3]} 8. c3 {[%clk 0:02:39]} 8...
O-O {[%clk 0:02:34.3]} 9. O-O {[%clk 0:02:37.9]} 9... d5 {[%clk 0:02:31.6]} 10.
exd5 {[%clk 0:02:34.3]} 10... e4 {[%clk 0:02:26.6]} 11. dxc6 {[%clk 0:02:26.7]}
11... Bg4 {[%clk 0:02:25.5]} 12. d4 {[%clk 0:02:00.2]} 12... exf3 {[%clk
0:02:24]} 13. gxf3 {[%clk 0:02:00.3]} 13... Bh3 {[%clk 0:02:23.2]} 14. Re1
{[%clk 0:01:59]} 14... Bd6 {[%clk 0:02:20.5]} 15. Nd2 {[%clk 0:01:52.9]} 15...
Nh5 {[%clk 0:01:28.9]} 16. Ne4 {[%clk 0:01:44.4]} 16... Nf4 {[%clk 0:01:28.5]}
17. Bxf4 {[%clk 0:01:36.3]} 17... Bxf4 {[%clk 0:01:29.4]} 18. Ng3 {[%clk
0:01:36.2]} 18... Qf6 {[%clk 0:01:25.2]} 19. Qe7 {[%clk 0:01:32.3]} 19... Qxc6
{[%clk 0:01:21.8]} 20. Qh4 {[%clk 0:01:26.6]} 20... Qh6 {[%clk 0:01:05.2]} 21.
Qxh6 {[%clk 0:01:13.9]} 21... Bxh6 {[%clk 0:01:06.1]} 22. Re7 {[%clk 0:01:10.6]}
22... Rab8 {[%clk 0:01:00.9]} 23. Bc4 {[%clk 0:01:09.2]} 23... Bf4 {[%clk
0:00:53.6]} 24. Bxa6 {[%clk 0:00:55]} 24... Bd6 {[%clk 0:00:52.3]} 25. Re4
{[%clk 0:00:53.5]} 25... f5 {[%clk 0:00:47.7]} 26. Rh4 {[%clk 0:00:48.3]} 26...
f4 {[%clk 0:00:42.9]} 27. Rxh3 {[%clk 0:00:48]} 27... fxg3 {[%clk 0:00:42.4]}
28. hxg3 {[%clk 0:00:46.8]} 28... bxc3 {[%clk 0:00:35.6]} 29. bxc3 {[%clk
0:00:44.7]} 29... Rxf3 {[%clk 0:00:35.9]} 30. Bc4+ {[%clk 0:00:43.3]} 30... Kh8
{[%clk 0:00:34.9]} 31. Rc1 {[%clk 0:00:38.4]} 31... Rb2 {[%clk 0:00:32.8]} 32.
Rh2 {[%clk 0:00:38.2]} 32... c5 {[%clk 0:00:19]} 33. a5 {[%clk 0:00:37.6]} 33...
Bc7 {[%clk 0:00:13.9]} 34. a6 {[%clk 0:00:36.8]} 34... Bb6 {[%clk 0:00:14]} 35.
d5 {[%clk 0:00:37.1]} 35... h6 {[%clk 0:00:11]} 36. d6 {[%clk 0:00:36.7]} 36...
Rd2 {[%clk 0:00:10.4]} 37. Ra1 {[%clk 0:00:16.9]} 37... Ba7 {[%clk 0:00:10.2]}
38. Rh5 {[%clk 0:00:13.5]} 38... Rfxf2 {[%clk 0:00:09]} 39. d7 {[%clk
0:00:11.9]} 39... Rg2+ {[%clk 0:00:09]} 40. Kh1 {[%clk 0:00:12.2]} 40... Rgf2
{[%clk 0:00:08.3]} 41. Be6 {[%clk 0:00:10.6]} 41... Kh7 {[%clk 0:00:07.3]} 42.
c4 {[%clk 0:00:10.9]} 42... g6 {[%clk 0:00:07.2]} 43. Rd5 {[%clk 0:00:11.2]}
43... Rh2+ {[%clk 0:00:06.5]} 44. Kg1 {[%clk 0:00:10.7]} 44... Rdg2+ {[%clk
0:00:06.5]} 45. Kf1 {[%clk 0:00:10.6]} 45... Rb2 {[%clk 0:00:06.4]} 46. Kg1
{[%clk 0:00:08.2]} 46... Rbg2+ {[%clk 0:00:06]} 47. Kf1 {[%clk 0:00:07.3]} 47...
Rf2+ {[%clk 0:00:05.9]} 48. Ke1 {[%clk 0:00:05.7]} 48... Rb2 {[%clk 0:00:05]}
49. Bh3 {[%clk 0:00:02.1]} 49... Rxh3 {[%clk 0:00:04.2]} 0-1

[Event "Late-Titled-Tuesday-Blitz-September-12-2023"]
[Site "Chess.com"]
[Date "2023.09.12"]
[Round "1"]
[White "MalyDominator"]
[Black "ckgchess"]
[Result "0-1"]
[WhiteElo "2459"]
[BlackElo "2879"]
[TimeControl "180+1"]
[EndTime "14:08:03 PDT"]
[Termination "ckgchess won by resignation"]

1. e4 {[%clk 0:03:00.9]} 1... e5 {[%clk 0:02:56.7]} 2. Nf3 {[%clk 0:03:00.4]}
2... Nf6 {[%clk 0:02:57.3]} 3. d4 {[%clk 0:02:58.1]} 3... d5 {[%clk 0:02:43.9]}
4. dxe5 {[%clk 0:02:26.8]} 4... Nxe4 {[%clk 0:02:43.1]} 5. Bd3 {[%clk
0:02:27.4]} 5... Nc5 {[%clk 0:02:37.8]} 6. Be2 {[%clk 0:02:20.2]} 6... Be7
{[%clk 0:02:37.1]} 7. O-O {[%clk 0:02:20.6]} 7... O-O {[%clk 0:02:33.7]} 8. Be3
{[%clk 0:02:18.3]} 8... c6 {[%clk 0:02:26.6]} 9. c3 {[%clk 0:02:18.5]} 9... Bg4
{[%clk 0:02:10.3]} 10. Nbd2 {[%clk 0:02:16.3]} 10... Nbd7 {[%clk 0:02:07.9]} 11.
h3 {[%clk 0:02:13.1]} 11... Bh5 {[%clk 0:02:08]} 12. Re1 {[%clk 0:02:01.8]}
12... Re8 {[%clk 0:02:00.7]} 13. b4 {[%clk 0:01:48.6]} 13... Ne4 {[%clk
0:01:58.2]} 14. Qc2 {[%clk 0:01:40.7]} 14... Nxd2 {[%clk 0:01:09.2]} 15. Bxd2
{[%clk 0:01:34]} 15... Bxf3 {[%clk 0:01:09.3]} 16. Bxf3 {[%clk 0:01:33.8]} 16...
Bg5 {[%clk 0:01:10]} 17. c4 {[%clk 0:00:53.1]} 17... Bxd2 {[%clk 0:01:05.8]} 18.
Qxd2 {[%clk 0:00:52.6]} 18... Nxe5 {[%clk 0:01:06.5]} 19. cxd5 {[%clk
0:00:49.2]} 19... Nxf3+ {[%clk 0:01:06.3]} 20. gxf3 {[%clk 0:00:48.7]} 20...
Rxe1+ {[%clk 0:00:53.2]} 21. Rxe1 {[%clk 0:00:48]} 21... cxd5 {[%clk 0:00:54.1]}
22. Rd1 {[%clk 0:00:47.7]} 22... Qd6 {[%clk 0:00:38.7]} 23. Qxd5 {[%clk
0:00:23]} 23... Qxb4 {[%clk 0:00:38.8]} 24. Rd4 {[%clk 0:00:20.5]} 24... Qb1+
{[%clk 0:00:32.9]} 25. Kh2 {[%clk 0:00:20.7]} 25... Rf8 {[%clk 0:00:31.5]} 26.
a4 {[%clk 0:00:19.9]} 26... b6 {[%clk 0:00:25.7]} 27. h4 {[%clk 0:00:18.7]}
27... Qc2 {[%clk 0:00:21.7]} 28. Kg2 {[%clk 0:00:18.2]} 28... h6 {[%clk
0:00:21.5]} 29. h5 {[%clk 0:00:18.2]} 29... Rc8 {[%clk 0:00:15.6]} 30. Qe5
{[%clk 0:00:17]} 30... Qc5 {[%clk 0:00:12.6]} 31. Rd5 {[%clk 0:00:15.5]} 31...
Qc4 {[%clk 0:00:10.9]} 32. Rd4 {[%clk 0:00:15.1]} 32... Qc7 {[%clk 0:00:08.7]}
33. Qd5 {[%clk 0:00:13.6]} 33... Qc5 {[%clk 0:00:08.1]} 34. Qd7 {[%clk
0:00:11.5]} 34... Rf8 {[%clk 0:00:06]} 35. Qg4 {[%clk 0:00:10.2]} 35... Re8
{[%clk 0:00:04.9]} 36. Rd7 {[%clk 0:00:07.2]} 36... Re5 {[%clk 0:00:04.5]} 37.
Rd8+ {[%clk 0:00:07.2]} 37... Kh7 {[%clk 0:00:05.1]} 38. Qf4 {[%clk 0:00:06.4]}
38... Rg5+ {[%clk 0:00:05.1]} 39. Kf1 {[%clk 0:00:05.5]} 39... Qf5 {[%clk
0:00:03.7]} 40. Qd4 {[%clk 0:00:03.1]} 40... Qb1+ {[%clk 0:00:03.2]} 41. Ke2
{[%clk 0:00:02.9]} 41... Qc2+ {[%clk 0:00:03.6]} 42. Ke3 {[%clk 0:00:03.2]}
42... Qc1+ {[%clk 0:00:04.1]} 43. Ke2 {[%clk 0:00:03.3]} 43... Qc2+ {[%clk
0:00:03.9]} 44. Ke3 {[%clk 0:00:03.9]} 44... Qb3+ {[%clk 0:00:03.4]} 45. Ke2
{[%clk 0:00:04.1]} 45... Qe6+ {[%clk 0:00:04]} 46. Kd2 {[%clk 0:00:04.1]} 46...
Qf5 {[%clk 0:00:03]} 47. Ke2 {[%clk 0:00:04.2]} 47... Qe5+ {[%clk 0:00:03.1]}
48. Qxe5 {[%clk 0:00:04]} 48... Rxe5+ {[%clk 0:00:04]} 49. Kd3 {[%clk
0:00:04.9]} 49... Rxh5 {[%clk 0:00:04.5]} 50. Rd7 {[%clk 0:00:05.6]} 50... Ra5
{[%clk 0:00:05.4]} 51. Rxf7 {[%clk 0:00:04.9]} 51... Rxa4 {[%clk 0:00:05.9]} 52.
f4 {[%clk 0:00:05.1]} 52... Kg6 {[%clk 0:00:05.2]} 53. Re7 {[%clk 0:00:04.3]}
53... Rxf4 {[%clk 0:00:05.1]} 0-1

[Event "Late-Titled-Tuesday-Blitz-September-12-2023"]
[Site "Chess.com"]
[Date "2023.09.12"]
[Round "1"]
[White "NotFischer"]
[Black "GlavkonVVS"]
[Result "0-1"]
[WhiteElo "2282"]
[BlackElo "2580"]
[TimeControl "180+1"]
[EndTime "14:08:04 PDT"]
[Termination "GlavkonVVS won by checkmate"]

1. e4 {[%clk 0:03:00.9]} 1... Nf6 {[%clk 0:02:59.8]} 2. e5 {[%clk 0:03:00.5]}
2... Nd5 {[%clk 0:02:10.8]} 3. d4 {[%clk 0:03:00.2]} 3... d6 {[%clk 0:02:09.3]}
4. c4 {[%clk 0:02:59.9]} 4... Nb6 {[%clk 0:02:09.7]} 5. exd6 {[%clk 0:03:00.1]}
5... cxd6 {[%clk 0:02:10.1]} 6. Nc3 {[%clk 0:02:59.7]} 6... g6 {[%clk
0:02:10.7]} 7. Be3 {[%clk 0:02:58.7]} 7... Bg7 {[%clk 0:02:11.2]} 8. h3 {[%clk
0:02:53.8]} 8... O-O {[%clk 0:02:12.1]} 9. Nf3 {[%clk 0:02:53.4]} 9... f5 {[%clk
0:02:08.1]} 10. Qd2 {[%clk 0:02:49.7]} 10... e5 {[%clk 0:02:05.6]} 11. Bg5
{[%clk 0:02:47.5]} 11... Bf6 {[%clk 0:01:59.5]} 12. Bxf6 {[%clk 0:02:30.1]}
12... Qxf6 {[%clk 0:01:59.5]} 13. dxe5 {[%clk 0:02:27.3]} 13... dxe5 {[%clk
0:01:59.5]} 14. Nd5 {[%clk 0:02:27]} 14... Nxd5 {[%clk 0:01:59]} 15. cxd5 {[%clk
0:02:27.9]} 15... e4 {[%clk 0:01:48.3]} 16. Nd4 {[%clk 0:02:27.8]} 16... Qe5
{[%clk 0:01:23.1]} 17. Bc4 {[%clk 0:02:20]} 17... Na6 {[%clk 0:01:06.1]} 18. O-O
{[%clk 0:02:12.6]} 18... Nc5 {[%clk 0:00:56]} 19. f4 {[%clk 0:01:57.3]} 19...
Qf6 {[%clk 0:00:50.1]} 20. Qe3 {[%clk 0:01:45.1]} 20... b6 {[%clk 0:00:48.2]}
21. b4 {[%clk 0:01:44.4]} 21... Ba6 {[%clk 0:00:39.6]} 22. b5 {[%clk 0:01:44.5]}
22... Bc8 {[%clk 0:00:36]} 23. Rad1 {[%clk 0:01:36.8]} 23... Bd7 {[%clk
0:00:35.5]} 24. Nc6 {[%clk 0:01:33.9]} 24... Kg7 {[%clk 0:00:32.5]} 25. Ne5
{[%clk 0:01:31.1]} 25... Rfd8 {[%clk 0:00:32.4]} 26. Rd2 {[%clk 0:01:25.4]}
26... Be8 {[%clk 0:00:30.9]} 27. Rfd1 {[%clk 0:01:21.2]} 27... Rd6 {[%clk
0:00:30.2]} 28. Qc3 {[%clk 0:01:14.2]} 28... Rc8 {[%clk 0:00:19.8]} 29. Kh2
{[%clk 0:01:10.1]} 29... a6 {[%clk 0:00:19.7]} 30. bxa6 {[%clk 0:01:06.1]} 30...
b5 {[%clk 0:00:20]} 31. Be2 {[%clk 0:01:00.9]} 31... Rxa6 {[%clk 0:00:19.3]} 32.
d6 {[%clk 0:00:58.8]} 32... Bd7 {[%clk 0:00:17.1]} 33. Qb4 {[%clk 0:00:51.4]}
33... Ra4 {[%clk 0:00:14.6]} 34. Qb2 {[%clk 0:00:50.6]} 34... e3 {[%clk
0:00:12]} 35. Rc2 {[%clk 0:00:48.4]} 35... Rxf4 {[%clk 0:00:11.5]} 36. Nxd7
{[%clk 0:00:46]} 36... Qxb2 {[%clk 0:00:11.2]} 37. Rxb2 {[%clk 0:00:46.9]} 37...
Nxd7 {[%clk 0:00:11.6]} 38. Rxb5 {[%clk 0:00:47.1]} 38... Rd8 {[%clk 0:00:11.9]}
39. Rb7 {[%clk 0:00:47.1]} 39... Kf6 {[%clk 0:00:12.2]} 40. Bb5 {[%clk
0:00:46.5]} 40... Ne5 {[%clk 0:00:12.4]} 41. d7 {[%clk 0:00:44.7]} 41... Re4
{[%clk 0:00:11.7]} 42. Rb6+ {[%clk 0:00:45]} 42... Ke7 {[%clk 0:00:11.8]} 43.
Rdd6 {[%clk 0:00:44.1]} 43... e2 {[%clk 0:00:11.4]} 44. Re6+ {[%clk 0:00:42.7]}
44... Kf7 {[%clk 0:00:11.9]} 45. Rf6+ {[%clk 0:00:43.1]} 45... Kg7 {[%clk
0:00:11.9]} 46. Rbe6 {[%clk 0:00:43.2]} 46... e1=Q {[%clk 0:00:11.7]} 47. Re8
{[%clk 0:00:33]} 47... Rxd7 {[%clk 0:00:08.9]} 48. Rff8 {[%clk 0:00:29]} 48...
Rf7 {[%clk 0:00:08.5]} 49. Rg8+ {[%clk 0:00:26.7]} 49... Kh6 {[%clk 0:00:08.9]}
50. a4 {[%clk 0:00:22.1]} 50... Ng4+ {[%clk 0:00:09.2]} 51. hxg4 {[%clk
0:00:22.2]} 51... Rxe8 {[%clk 0:00:09.2]} 52. Rxe8 {[%clk 0:00:21.5]} 52... Qh4+
{[%clk 0:00:08.8]} 53. Kg1 {[%clk 0:00:21.8]} 53... fxg4 {[%clk 0:00:09.2]} 54.
Re2 {[%clk 0:00:20.6]} 54... Re7 {[%clk 0:00:09.3]} 55. Rxe7 {[%clk 0:00:20]}
55... Qxe7 {[%clk 0:00:09.5]} 56. Kf2 {[%clk 0:00:20.9]} 56... Qc5+ {[%clk
0:00:09.5]} 57. Kg3 {[%clk 0:00:20.9]} 57... Kg5 {[%clk 0:00:10.3]} 58. Kh2
{[%clk 0:00:18.6]} 58... Qe3 {[%clk 0:00:10.7]} 59. g3 {[%clk 0:00:18.6]} 59...
Qf2+ {[%clk 0:00:10.9]} 60. Kh1 {[%clk 0:00:19.2]} 60... Qxg3 {[%clk 0:00:11.5]}
61. a5 {[%clk 0:00:19.6]} 61... Qe1+ {[%clk 0:00:10.8]} 62. Kg2 {[%clk
0:00:19.6]} 62... Qxa5 {[%clk 0:00:11.5]} 63. Be8 {[%clk 0:00:19.1]} 63... Qd2+
{[%clk 0:00:12.4]} 64. Kg1 {[%clk 0:00:19]} 64... Kf4 {[%clk 0:00:13]} 65. Bxg6
{[%clk 0:00:19.3]} 65... Kg3 {[%clk 0:00:12.8]} 66. Kh1 {[%clk 0:00:20.2]} 66...
Qh2# {[%clk 0:00:13]} 0-1

[Event "Late-Titled-Tuesday-Blitz-September-12-2023"]
[Site "Chess.com"]
[Date "2023.09.12"]
[Round "1"]
[White "Arteler"]
[Black "sergiochess83"]
[Result "1/2-1/2"]
[WhiteElo "2475"]
[BlackElo "2920"]
[TimeControl "180+1"]
[EndTime "14:08:09 PDT"]
[Termination "Game drawn by repetition"]

1. e4 {[%clk 0:02:59.1]} 1... e6 {[%clk 0:03:00.1]} 2. d4 {[%clk 0:02:59.1]}
2... d5 {[%clk 0:02:59.8]} 3. Nd2 {[%clk 0:02:59.5]} 3... c5 {[%clk 0:02:54.7]}
4. exd5 {[%clk 0:02:58.3]} 4... exd5 {[%clk 0:02:48.7]} 5. Ngf3 {[%clk
0:02:58.3]} 5... Nc6 {[%clk 0:02:43.3]} 6. Bb5 {[%clk 0:02:58.1]} 6... Qe7+
{[%clk 0:02:40.4]} 7. Be2 {[%clk 0:02:55.5]} 7... Qc7 {[%clk 0:02:39.9]} 8. O-O
{[%clk 0:02:54.1]} 8... Nf6 {[%clk 0:02:36.9]} 9. dxc5 {[%clk 0:02:49.3]} 9...
Bxc5 {[%clk 0:02:36.2]} 10. Nb3 {[%clk 0:02:49.6]} 10... Bb6 {[%clk 0:02:36.4]}
11. Bg5 {[%clk 0:02:48.2]} 11... Be6 {[%clk 0:02:28.7]} 12. c3 {[%clk
0:02:43.1]} 12... Ne4 {[%clk 0:02:28.1]} 13. Bh4 {[%clk 0:02:42.1]} 13... O-O
{[%clk 0:02:23]} 14. Nbd4 {[%clk 0:02:41.6]} 14... Rae8 {[%clk 0:02:11.3]} 15.
Re1 {[%clk 0:02:33.1]} 15... Bg4 {[%clk 0:02:09]} 16. Nxc6 {[%clk 0:02:09.5]}
16... bxc6 {[%clk 0:02:06.8]} 17. Nd4 {[%clk 0:02:09.8]} 17... Bxe2 {[%clk
0:01:26.3]} 18. Rxe2 {[%clk 0:02:10.7]} 18... c5 {[%clk 0:01:26.9]} 19. Nc2
{[%clk 0:01:51]} 19... Qc6 {[%clk 0:01:18.1]} 20. a4 {[%clk 0:01:42.6]} 20... h6
{[%clk 0:01:08.8]} 21. a5 {[%clk 0:01:42.4]} 21... Bc7 {[%clk 0:01:08.7]} 22.
Ne3 {[%clk 0:01:32.1]} 22... Qd6 {[%clk 0:00:23.3]} 23. Bg3 {[%clk 0:01:30.9]}
23... Nxg3 {[%clk 0:00:23.1]} 24. hxg3 {[%clk 0:01:31.7]} 24... d4 {[%clk
0:00:23.8]} 25. cxd4 {[%clk 0:01:29.4]} 25... cxd4 {[%clk 0:00:23.7]} 26. Nf5
{[%clk 0:01:29.4]} 26... Qc5 {[%clk 0:00:18.7]} 27. Rxe8 {[%clk 0:01:29.8]}
27... Rxe8 {[%clk 0:00:19.1]} 28. Qg4 {[%clk 0:01:29.7]} 28... g6 {[%clk
0:00:16.2]} 29. Nxd4 {[%clk 0:01:17.6]} 29... h5 {[%clk 0:00:16.1]} 30. Qh4
{[%clk 0:01:11.4]} 30... Rb8 {[%clk 0:00:08.8]} 31. Nf3 {[%clk 0:00:56.7]} 31...
Rxb2 {[%clk 0:00:07.6]} 32. g4 {[%clk 0:00:46.8]} 32... hxg4 {[%clk 0:00:04.1]}
33. Ng5 {[%clk 0:00:47.4]} 33... Qf5 {[%clk 0:00:02.6]} 34. Re1 {[%clk
0:00:43.8]} 34... Be5 {[%clk 0:00:01.8]} 35. Qh7+ {[%clk 0:00:23.1]} 35... Kf8
{[%clk 0:00:02.1]} 36. Qxf7+ {[%clk 0:00:16.7]} 36... Qxf7 {[%clk 0:00:01.6]}
37. Nxf7 {[%clk 0:00:17.6]} 37... Kxf7 {[%clk 0:00:02.3]} 38. Rxe5 {[%clk
0:00:17.7]} 38... g3 {[%clk 0:00:02.6]} 39. fxg3 {[%clk 0:00:17.2]} 39... Ra2
{[%clk 0:00:03.2]} 40. Rc5 {[%clk 0:00:17.3]} 40... Ke6 {[%clk 0:00:02.8]} 41.
Rc6+ {[%clk 0:00:17.8]} 41... Kf5 {[%clk 0:00:03.2]} 42. Ra6 {[%clk 0:00:18.7]}
42... g5 {[%clk 0:00:02.9]} 43. Rxa7 {[%clk 0:00:18.8]} 43... Kg4 {[%clk
0:00:03.8]} 44. Kh2 {[%clk 0:00:19.2]} 44... Ra3 {[%clk 0:00:03.6]} 45. a6
{[%clk 0:00:19.5]} 45... Ra4 {[%clk 0:00:03.9]} 46. Ra8 {[%clk 0:00:19.5]} 46...
Ra2 {[%clk 0:00:04.2]} 47. a7 {[%clk 0:00:18.8]} 47... Ra1 {[%clk 0:00:04.3]}
48. Rb8 {[%clk 0:00:12.9]} 48... Rxa7 {[%clk 0:00:04.3]} 49. Rb4+ {[%clk
0:00:13.7]} 49... Kh5 {[%clk 0:00:04.6]} 50. g4+ {[%clk 0:00:13.5]} 50... Kh6
{[%clk 0:00:03.6]} 51. Rb6+ {[%clk 0:00:14.2]} 51... Kg7 {[%clk 0:00:03.6]} 52.
Rb3 {[%clk 0:00:14.5]} 52... Ra4 {[%clk 0:00:03.6]} 53. Kg3 {[%clk 0:00:15.1]}
53... Ra6 {[%clk 0:00:03.5]} 54. Kf3 {[%clk 0:00:15.3]} 54... Kg6 {[%clk
0:00:04]} 55. Rd3 {[%clk 0:00:14.9]} 55... Rf6+ {[%clk 0:00:04.1]} 56. Kg3
{[%clk 0:00:15.3]} 56... Rb6 {[%clk 0:00:05]} 57. Re3 {[%clk 0:00:15.6]} 57...
Rc6 {[%clk 0:00:04.8]} 58. Rf3 {[%clk 0:00:15.9]} 58... Rb6 {[%clk 0:00:05.3]}
59. Re3 {[%clk 0:00:16.1]} 59... Rc6 {[%clk 0:00:05.8]} 60. Rd3 {[%clk
0:00:16.5]} 60... Rb6 {[%clk 0:00:06.4]} 61. Kf3 {[%clk 0:00:17.1]} 61... Ra6
{[%clk 0:00:06.8]} 62. Ke4 {[%clk 0:00:17.2]} 62... Re6+ {[%clk 0:00:06.8]} 63.
Kf3 {[%clk 0:00:16.6]} 63... Ra6 {[%clk 0:00:07.7]} 64. Kg3 {[%clk 0:00:17.1]}
64... Rb6 {[%clk 0:00:07.9]} 1/2-1/2

[Event "Late-Titled-Tuesday-Blitz-September-12-2023"]
[Site "Chess.com"]
[Date "2023.09.12"]
[Round "1"]
[White "Road2GM3000"]
[Black "Druid24"]
[Result "1/2-1/2"]
[WhiteElo "2342"]
[BlackElo "2632"]
[TimeControl "180+1"]
[EndTime "14:08:10 PDT"]
[Termination "Game drawn by repetition"]

1. d4 {[%clk 0:03:00.5]} 1... Nf6 {[%clk 0:02:57]} 2. c4 {[%clk 0:03:01]} 2...
g6 {[%clk 0:02:57.2]} 3. Nc3 {[%clk 0:03:01.7]} 3... Bg7 {[%clk 0:02:57.5]} 4.
e4 {[%clk 0:03:02.5]} 4... d6 {[%clk 0:02:58.3]} 5. f4 {[%clk 0:03:03.3]} 5...
O-O {[%clk 0:02:59]} 6. Nf3 {[%clk 0:03:04]} 6... c5 {[%clk 0:02:59.6]} 7. d5
{[%clk 0:03:04]} 7... e6 {[%clk 0:02:59.2]} 8. Be2 {[%clk 0:03:03.7]} 8... exd5
{[%clk 0:02:58.5]} 9. exd5 {[%clk 0:03:04.6]} 9... Re8 {[%clk 0:02:58.2]} 10.
O-O {[%clk 0:03:05.3]} 10... Bf5 {[%clk 0:02:51.6]} 11. Bd3 {[%clk 0:03:05.9]}
11... Bxd3 {[%clk 0:02:47.7]} 12. Qxd3 {[%clk 0:03:06.8]} 12... Nbd7 {[%clk
0:02:48.3]} 13. f5 {[%clk 0:03:07]} 13... Qe7 {[%clk 0:02:21.9]} 14. Bg5 {[%clk
0:03:04.5]} 14... Ne5 {[%clk 0:02:21.5]} 15. Nxe5 {[%clk 0:02:56]} 15... Qxe5
{[%clk 0:02:22.4]} 16. Bh4 {[%clk 0:02:33.5]} 16... Ng4 {[%clk 0:02:16.3]} 17.
Bg3 {[%clk 0:02:31.8]} 17... Qe3+ {[%clk 0:02:16.2]} 18. Qxe3 {[%clk 0:02:32]}
18... Nxe3 {[%clk 0:02:17.1]} 19. Bxd6 {[%clk 0:02:23]} 19... Nxf1 {[%clk
0:02:14.6]} 20. Kxf1 {[%clk 0:02:19]} 20... b6 {[%clk 0:02:09.2]} 21. Bc7 {[%clk
0:02:14.4]} 21... Bxc3 {[%clk 0:01:35.4]} 22. bxc3 {[%clk 0:02:12.5]} 22... Re7
{[%clk 0:01:29.4]} 23. d6 {[%clk 0:02:11.5]} 23... Rd7 {[%clk 0:01:29.7]} 24. f6
{[%clk 0:02:03.1]} 24... Kf8 {[%clk 0:01:25.9]} 25. g4 {[%clk 0:01:57.7]} 25...
Rc8 {[%clk 0:01:24.7]} 26. g5 {[%clk 0:01:52.8]} 26... Rcxc7 {[%clk 0:01:23.6]}
27. dxc7 {[%clk 0:01:53.1]} 27... Rxc7 {[%clk 0:01:24.5]} 28. Rd1 {[%clk
0:01:44.7]} 28... Ke8 {[%clk 0:01:24.6]} 29. Kf2 {[%clk 0:01:36.7]} 29... Rd7
{[%clk 0:01:24.9]} 30. Rd5 {[%clk 0:01:34.9]} 30... Rc7 {[%clk 0:01:17.4]} 31.
Kf3 {[%clk 0:01:27.1]} 31... Rc6 {[%clk 0:01:17.7]} 32. Re5+ {[%clk 0:01:18.8]}
32... Kd8 {[%clk 0:00:34.6]} 33. Ke4 {[%clk 0:00:46.1]} 33... Rd6 {[%clk
0:00:32.4]} 34. Re7 {[%clk 0:00:45.2]} 34... Rd7 {[%clk 0:00:29.3]} 35. Re5
{[%clk 0:00:40.7]} 35... Rd6 {[%clk 0:00:27.8]} 36. a4 {[%clk 0:00:38.8]} 36...
Rd7 {[%clk 0:00:25.8]} 37. a5 {[%clk 0:00:38.8]} 37... Rd1 {[%clk 0:00:22.1]}
38. axb6 {[%clk 0:00:34]} 38... axb6 {[%clk 0:00:23]} 39. Rd5+ {[%clk
0:00:18.5]} 39... Rxd5 {[%clk 0:00:22.8]} 40. Kxd5 {[%clk 0:00:17.3]} 40... Kd7
{[%clk 0:00:21]} 41. Ke5 {[%clk 0:00:15.2]} 41... Kc6 {[%clk 0:00:20.2]} 42. Ke4
{[%clk 0:00:14.1]} 42... Kd6 {[%clk 0:00:18.3]} 43. Kf4 {[%clk 0:00:14.6]} 43...
Kd7 {[%clk 0:00:16.8]} 44. Ke5 {[%clk 0:00:13.3]} 44... Kc6 {[%clk 0:00:15.7]}
45. h3 {[%clk 0:00:12.3]} 45... Kd7 {[%clk 0:00:15.2]} 46. Kd5 {[%clk
0:00:12.6]} 46... Kc7 {[%clk 0:00:12.3]} 47. Ke5 {[%clk 0:00:10.9]} 47... Kd7
{[%clk 0:00:12.8]} 48. h4 {[%clk 0:00:11]} 48... Kc6 {[%clk 0:00:10.7]} 49. Kf4
{[%clk 0:00:10.8]} 49... Kd6 {[%clk 0:00:04.5]} 50. Ke4 {[%clk 0:00:11.1]} 50...
Ke6 {[%clk 0:00:04.9]} 51. Kf4 {[%clk 0:00:11.6]} 51... Kd6 {[%clk 0:00:04.3]}
52. Ke4 {[%clk 0:00:10.2]} 52... Kd7 {[%clk 0:00:03.7]} 53. Kd5 {[%clk
0:00:08.5]} 53... Kc7 {[%clk 0:00:03.8]} 54. Ke5 {[%clk 0:00:08.8]} 54... Kc6
{[%clk 0:00:04.3]} 55. Ke4 {[%clk 0:00:08.5]} 55... Kd6 {[%clk 0:00:04.6]} 56.
Kf4 {[%clk 0:00:08.8]} 56... Ke6 {[%clk 0:00:04.6]} 57. Ke4 {[%clk 0:00:09.2]}
57... Kd6 {[%clk 0:00:03.9]} 58. Kf4 {[%clk 0:00:09.2]} 58... Kc7 {[%clk
0:00:04.2]} 59. Kg4 {[%clk 0:00:06.8]} 59... Kc6 {[%clk 0:00:03.7]} 60. Kf4
{[%clk 0:00:05.6]} 60... Kd6 {[%clk 0:00:03.4]} 1/2-1/2